bitfinex/quotes_ETHUSD_20250815
["timestamp","ask_amount","ask_price","bid_price","bid_amount"]
[1755281038426,0.1128,4441.0,4440.4,0.20604941]
[1755281038631,0.002,4441.2,4440.5,3.80804941]
[1755281038920,0.21004329,4441.1,4440.6,2.58019843]
[1755281039089,0.21004329,4441.0,4440.5,0.1128]
[1755281039282,0.21004329,4440.9,4440.7,3.601]
[1755281039486,0.21004329,4440.8,4440.5,0.1128]
[1755281039725,0.60549937,4440.7,4440.6,0.20611708]
[1755281039907,1.20641295,4441.3,4440.6,3.80611708]
[1755281039908,1.0424903,4441.3,4440.6,3.80611708]
[1755281040109,0.1128,4441.0,4440.7,0.20611708]
[1755281040435,0.48439385,4440.9,4440.8,2.45796359]
[1755281040582,0.02,4441.4,4441.3,0.1128]
[1755281040782,0.50446769,4441.4,4441.3,3.604]
[1755281041084,0.50446769,4441.4,4441.3,3.603]
[1755281041715,0.71472887,4441.4,4441.1,0.1128]
[1755281041910,0.02,4441.4,4441.3,3.603]
[1755281042222,0.71470972,4441.4,4441.1,0.1128]
[1755281042389,0.71470972,4441.4,4438.9,2.25278374]
[1755281042390,0.69470972,4441.3,4440.3,0.9442]
[1755281042585,0.69470972,4441.2,4440.8,0.1128]
[1755281042924,0.69470972,4441.1,4440.8,0.9442]
[1755281043102,0.69470972,4441.0,4440.8,0.9442]
[1755281043420,0.69470972,4440.9,4440.8,0.9442]
[1755281043625,0.69470972,4440.9,4440.7,0.1128]
[1755281043789,0.69470972,4440.8,4440.4,0.1128]
[1755281043988,0.4765,4441.3,4440.4,3.602]
[1755281043989,0.69470972,4440.7,4440.4,3.602]
[1755281044219,0.69473707,4440.6,4440.5,0.9442]
[1755281044524,0.69473707,4440.6,4440.5,6.79819864]
[1755281044719,0.69473707,4440.6,4440.4,0.1128]
[1755281045034,0.1128,4441.2,4440.6,2.25194673]
[1755281045189,0.69476692,4441.1,4440.6,2.25194673]
[1755281045519,0.1128,4441.2,4440.5,4.5472]
[1755281045520,0.69476692,4441.0,4440.5,3.603]
[1755281045725,0.69476692,4440.9,4440.6,3.603]
[1755281045924,0.69476692,4440.8,4440.6,3.602]
[1755281046100,0.80756692,4440.7,4440.6,3.602]
[1755281046713,0.59729125,4440.7,4440.6,3.602]
[1755281047003,0.48449125,4440.7,4440.6,6.28564793]
[1755281047195,0.48449125,4440.7,4440.6,7.63019636]
[1755281047799,0.48483832,4440.7,4440.6,5.37824843]
[1755281048005,0.48483832,4440.7,4440.6,7.63019636]
[1755281048322,0.210427,4441.3,4440.6,7.63019636]
[1755281048530,0.48483372,4441.2,4440.9,2.25175835]
[1755281048691,0.48483372,4441.1,4441.0,3.1629451]
[1755281048892,0.02,4441.4,4441.3,2.251593]
[1755281049130,0.02,4441.4,4441.3,5.87510893]
[1755281049425,0.02,4441.4,4441.3,6.876593]
[1755281049638,0.02,4441.4,4441.3,7.78941865]
[1755281049929,0.23045298,4441.4,4441.3,7.78941865]
[1755281050290,1e-08,4441.4,4441.3,11.33941865]
[1755281051126,1e-08,4441.4,4441.3,7.18841865]
[1755281051329,1e-08,4441.4,4441.3,6.875593]
[1755281051496,0.00200001,4441.4,4441.3,2.364393]
[1755281051697,0.00200001,4441.4,4441.3,5.967393]
[1755281051891,0.00200001,4441.4,4441.3,2.364393]
[1755281052292,0.00200001,4441.4,4441.3,0.1128]
[1755281052505,0.43290001,4441.4,4441.3,3.601]
[1755281052710,0.43290001,4441.4,4441.3,0.2060629]
[1755281052906,0.90730001,4441.4,4441.3,0.2060629]
[1755281053143,1.02010001,4441.4,4441.3,0.2060629]
[1755281053343,0.00200001,4441.4,4441.3,0.2060629]
[1755281053530,0.00200001,4441.4,4441.3,3.8090629]
[1755281053742,0.43290001,4441.4,4441.0,0.1128]
[1755281053918,0.4309,4441.3,4441.1,3.603]
[1755281054117,0.4309,4441.3,4440.8,0.1128]
[1755281054331,0.9053,4441.2,4440.9,3.602]
[1755281054519,0.11480001,4441.4,4440.9,3.602]
[1755281055123,0.11480001,4441.4,4440.9,4.0337]
[1755281055323,0.00200001,4441.4,4441.0,0.9112]
[1755281055632,0.00200001,4441.4,4441.3,2.364393]
[1755281055832,0.00200001,4441.4,4441.3,2.6919523]
[1755281056010,0.00200001,4441.4,4441.3,3.6031523]
[1755281056217,0.00200001,4441.4,4441.3,7.17566823]
[1755281056434,0.00200001,4441.4,4441.3,10.7551523]
[1755281056749,1e-08,4441.4,4441.3,10.7551523]
[1755281057308,1e-08,4441.4,4441.3,10.7561523]
[1755281057519,1e-08,4441.4,4441.3,8.966393]
[1755281057745,1e-08,4441.4,4441.3,2.364393]
[1755281057949,1e-08,4441.4,4441.3,6.880593]
[1755281058243,1e-08,4441.4,4441.3,2.364393]
[1755281058547,1e-08,4441.4,4441.3,6.881593]
[1755281058757,1e-08,4441.4,4441.3,7.79491607]
[1755281058933,1e-08,4441.4,4441.3,8.34491607]
[1755281059313,1e-08,4441.4,4441.3,4.73891607]
[1755281059514,1e-08,4441.4,4441.3,6.404093]
[1755281059712,1e-08,4441.4,4441.3,5.972393]
[1755281060650,1e-08,4441.4,4441.3,3.7198]
[1755281060956,1e-08,4441.4,4441.3,0.1128]
[1755281062054,1e-08,4441.4,4441.3,3.7198]
[1755281063670,1e-08,4441.4,4441.3,0.1128]
[1755281063851,1e-08,4441.4,4440.8,2.2518369]
[1755281063852,0.90530001,4441.4,4440.8,2.2518369]
[1755281064029,0.90530001,4441.4,4441.1,0.1128]
[1755281064359,3.15693388,4441.3,4440.4,2.25204208]
[1755281064659,3.15693388,4441.3,4440.7,0.1128]
[1755281064660,0.9053,4441.3,4440.7,0.1128]
[1755281065047,0.11280001,4441.4,4440.7,0.1128]
[1755281065740,0.11280001,4441.4,4440.8,3.603]
[1755281065926,0.11280001,4441.4,4440.8,5.85480143]
[1755281066122,1e-08,4441.4,4441.1,0.1128]
[1755281066326,1e-08,4441.4,4441.2,3.603]
[1755281066550,1e-08,4441.4,4441.1,0.1128]
[1755281066884,1e-08,4441.4,4441.1,3.7158]
[1755281067380,0.9053,4441.3,4441.1,0.1128]
[1755281067556,3.26978374,4441.2,4440.9,3.603]
[1755281067757,0.9053,4441.1,4440.8,3.602]
[1755281068074,2.2517451,4441.0,4440.8,3.602]
[1755281068243,0.1128,4441.2,4440.6,0.1128]
[1755281068443,0.4309,4440.9,4440.4,0.001]
[1755281068660,0.4309,4440.9,4440.8,0.001]
[1755281068857,0.9053,4440.9,4440.8,0.001]
[1755281069063,1.0181,4440.9,4440.8,0.001]
[1755281069493,0.1128,4440.9,4440.8,0.001]
[1755281069774,0.1128,4441.2,4440.8,0.001]
[1755281070932,0.5437,4441.2,4440.8,0.001]
[1755281071137,0.1128,4441.2,4440.9,2.25175724]
[1755281071369,1e-08,4441.4,4441.0,3.602]
[1755281071890,1e-08,4441.4,4441.3,2.251593]
[1755281072039,1e-08,4441.4,4441.0,4.0815]
[1755281072587,1e-08,4441.4,4441.1,2.25165033]
[1755281072750,1e-08,4441.4,4441.3,2.251593]
[1755281073075,1e-08,4441.4,4441.3,3.26829277]
[1755281073256,1e-08,4441.4,4441.3,3.69999277]
[1755281073457,1e-08,4441.4,4441.3,2.364393]
[1755281073778,1e-08,4441.4,4441.3,0.1128]
[1755281074086,0.43090001,4441.4,4440.8,0.001]
[1755281074266,1e-08,4441.4,4440.8,0.001]
[1755281074585,1e-08,4441.4,4440.8,3.599]
[1755281075092,1e-08,4441.4,4440.8,5.85083513]
[1755281075590,1e-08,4441.4,4440.9,2.2517958]
[1755281075798,1e-08,4441.4,4441.0,2.25173326]
[1755281076088,1e-08,4441.4,4441.3,2.251593]
[1755281076305,1e-08,4441.4,4441.3,5.86910893]
[1755281076486,1e-08,4441.4,4441.3,6.736493]
[1755281076658,1e-08,4441.4,4441.3,7.63530897]
[1755281076855,0.002,4442.1,4441.3,7.63530897]
[1755281076856,1e-08,4442.1,4441.4,11.80175]
[1755281077091,1e-08,4442.1,4442.0,21.18634638]
[1755281077297,1e-08,4442.1,4442.0,5.84823818]
[1755281077964,1e-08,4442.1,4441.5,0.8899]
[1755281078164,1e-08,4442.1,4442.0,2.25123818]
[1755281078594,1e-08,4442.1,4441.0,3.0]
[1755281078595,0.93120001,4442.1,4440.5,0.4617]
[1755281078816,0.4424,4442.0,4441.0,3.6]
[1755281078961,2.25139518,4441.7,4440.9,3.602]
[1755281079162,0.22513952,4441.6,4440.9,3.602]
[1755281079679,0.4424,4441.5,4441.0,3.602]
[1755281080193,0.9312,4441.5,4441.0,3.601]
[1755281080394,0.4424,4441.5,4441.0,3.601]
[1755281080578,0.4424,4442.0,4441.0,3.601]
[1755281080787,0.9312,4441.4,4441.0,3.601]
[1755281080978,0.4888,4441.4,4440.8,0.001]
[1755281081284,0.4424,4441.3,4440.9,3.599]
[1755281081693,0.4424,4441.3,4440.9,5.85078073]
[1755281081894,2.69364672,4442.0,4440.9,3.599]
[1755281082090,0.76084467,4442.0,4441.1,2.25167144]
[1755281082303,0.76084467,4442.0,4440.9,3.599]
[1755281082304,2.25130386,4441.9,4440.9,2.25175284]
[1755281082511,2.25130386,4441.9,4441.0,2.2517416]
[1755281082710,0.76084467,4442.0,4441.1,2.25166063]
[1755281082913,0.76084467,4442.0,4441.0,3.601]
[1755281082914,0.4424,4442.0,4441.0,5.8527427]
[1755281083111,0.4424,4442.0,4441.1,3.62151694]
[1755281083316,1e-08,4442.1,4441.1,3.599]
[1755281083512,2.25119718,4442.1,4441.1,5.8506918]
[1755281083689,1e-08,4442.1,4441.1,3.599]
[1755281083885,0.1128,4441.9,4441.3,0.1128]
[1755281084321,0.1128,4441.9,4441.4,3.598]
[1755281084487,0.4424,4441.8,4441.4,3.598]
[1755281084894,0.32951921,4441.8,4441.5,2.25145118]
[1755281085089,1e-08,4442.1,4441.6,0.9124144]
[1755281085301,1e-08,4442.1,4441.7,3.7098]
[1755281085919,0.002,4441.9,4441.7,3.7098]
[1755281086473,0.002,4441.9,4441.0,0.001]
[1755281086474,0.9312,4441.8,4441.0,0.001]
[1755281086678,0.1128,4441.6,4441.0,3.7088]
[1755281086910,0.1128,4441.6,4441.1,2.2516898]
[1755281087216,0.1128,4441.6,4441.0,0.1138]
[1755281087514,0.4424,4441.5,4441.0,0.001]
[1755281087690,0.28066765,4441.4,4441.0,0.001]
[1755281087877,2.69389605,4441.5,4441.0,0.001]
[1755281088074,0.1128,4441.6,4441.0,0.001]
[1755281088317,0.1128,4441.6,4441.1,2.2516796]
[1755281088493,0.1128,4441.7,4441.3,2.25158989]
[1755281088812,0.002,4441.9,4441.3,3.594]
[1755281089013,0.1148,4441.9,4441.3,5.84558147]
[1755281089215,0.1148,4441.9,4441.3,3.594]
[1755281089512,0.1148,4441.9,4441.1,0.5745]
[1755281089701,0.1148,4441.9,4441.2,5.84360344]
[1755281089907,0.1148,4441.9,4441.4,2.25151912]
[1755281090442,2.25133954,4441.8,4441.2,3.592]
[1755281090738,2.2516013,4441.3,4441.1,0.1128]
[1755281090947,2.2516313,4441.3,4441.0,0.001]
[1755281091608,2.2516944,4441.1,4441.0,0.001]
[1755281091836,2.3644944,4441.1,4441.0,0.001]
[1755281092654,2.8068944,4441.1,4441.0,0.001]
[1755281093137,3.80154697,4441.1,4441.0,0.001]
[1755281094715,1.06105257,4441.1,4441.0,0.001]
[1755281094914,2.8068944,4441.1,4441.0,0.001]
[1755281095116,3.2956944,4441.1,4441.0,0.001]
[1755281095521,3.46252785,4441.1,4441.0,0.001]
[1755281096119,6.46252785,4441.1,4441.0,0.001]
[1755281096815,5.97372785,4441.1,4441.0,0.001]
[1755281097020,7.20354042,4441.1,4441.0,0.001]
[1755281097220,3.27963345,4441.1,4441.0,0.001]
[1755281097643,5.53132785,4441.1,4441.0,0.001]
[1755281097846,6.46252785,4441.1,4441.0,0.001]
[1755281098149,0.27963345,4441.1,4441.0,0.001]
[1755281098349,2.53132785,4441.1,4441.0,0.001]
[1755281098523,4.2408219,4441.1,4441.0,0.001]
[1755281098860,7.2408219,4441.1,4441.0,0.001]
[1755281099221,6.3096219,4441.1,4441.0,0.001]
[1755281100048,3.27963345,4441.1,4441.0,0.001]
[1755281100248,3.0,4441.4,4441.0,0.001]
[1755281100448,0.1128,4441.3,4441.0,0.001]
[1755281100659,0.4444,4441.9,4441.1,0.8899]
[1755281100660,0.002,4441.9,4441.1,0.8899]
[1755281100858,0.1128,4441.7,4441.1,0.8899]
[1755281101390,0.1128,4441.7,4441.0,0.1138]
[1755281101391,0.002,4441.9,4441.6,2.36424024]
[1755281101527,0.002,4441.9,4441.8,2.25133954]
[1755281101917,0.002,4441.9,4441.8,3.14123954]
[1755281105086,0.002,4441.9,4441.6,0.1128]
[1755281105785,0.4444,4441.9,4441.6,0.1128]
[1755281106161,0.27156296,4441.9,4441.0,0.001]
[1755281106382,0.1128,4441.6,4441.0,0.1138]
[1755281106565,2.25166291,4441.2,4441.0,0.001]
[1755281107077,2.36439781,4441.3,4441.0,0.001]
[1755281107376,2.52286781,4441.9,4441.1,2.25168044]
[1755281107686,0.1128,4441.7,4441.1,1.05361694]
[1755281107883,0.1128,4441.7,4441.1,1.0311]
[1755281108046,0.1128,4441.7,4441.2,0.02251643]
[1755281108246,0.1128,4441.7,4441.1,0.5887]
[1755281108482,0.1128,4441.7,4441.1,0.1128]
[1755281108842,2.25143269,4441.7,4441.1,0.1128]
[1755281109072,2.25163194,4441.3,4441.0,0.001]
[1755281109279,0.1128,4441.1,4441.0,0.001]
[1755281109453,2.3644944,4441.1,4441.0,0.001]
[1755281109659,0.5438,4441.1,4441.0,0.001]
[1755281110642,0.1128,4441.1,4441.0,0.001]
[1755281111587,0.4988,4441.9,4441.0,0.001]
[1755281111588,0.002,4441.9,4441.5,2.2514478]
[1755281111763,0.002,4441.9,4441.0,1.0321]
[1755281111764,0.002,4441.9,4441.6,0.9183]
[1755281111959,0.002,4441.9,4441.5,2.36428449]
[1755281112159,0.002,4441.9,4441.5,0.1128]
[1755281112545,0.431,4441.8,4441.0,0.001]
[1755281112794,0.1128,4441.3,4441.0,0.001]
[1755281112983,2.2516944,4441.1,4441.0,0.001]
[1755281113298,6.16985604,4441.1,4441.0,0.001]
[1755281113686,7.09765604,4441.1,4441.0,0.001]
[1755281115847,7.64765604,4441.1,4441.0,1e-08]
[1755281116043,2.80204556,4440.5,4439.9,1e-08]
[1755281116287,2.80225225,4440.0,4439.9,1e-08]
[1755281116453,6.60769526,4440.0,4439.9,1e-08]
[1755281116654,7.53549526,4440.0,4439.9,1e-08]
[1755281116948,3.0,4439.9,4438.1,0.02]
[1755281117149,2.25291188,4438.7,4438.1,0.02]
[1755281117855,2.68371542,4439.1,4438.1,0.02]
[1755281118062,9.17382163,4439.0,4438.1,0.02]
[1755281118274,2.25291188,4438.7,4438.1,0.02]
[1755281118648,9.29091188,4438.7,4438.1,0.02]
[1755281118845,2.25316569,4438.2,4438.1,0.02]
[1755281119050,2.25367348,4437.2,4437.1,0.02]
[1755281119285,0.22536735,4437.2,4437.1,0.02]
[1755281120264,2.47904083,4437.2,4437.1,0.02]
[1755281120499,0.39388572,4437.2,4437.1,0.02]
[1755281120664,0.59951837,4437.2,4437.1,0.02]
[1755281120853,3.34999185,4437.2,4437.1,0.02]
[1755281121487,0.16851837,4437.2,4437.1,0.02]
[1755281121789,2.25367348,4437.2,4437.1,0.02]
[1755281121984,2.25352112,4437.5,4437.1,0.02]
[1755281122194,2.25367348,4437.2,4437.1,0.02]
[1755281122580,0.68003211,4437.4,4437.1,0.02]
[1755281122775,2.93360934,4437.4,4437.1,0.02]
[1755281122985,2.36647348,4437.2,4437.1,0.02]
[1755281123173,0.1128,4437.2,4437.1,0.02]
[1755281123487,2.36647348,4437.2,4437.1,0.02]
[1755281123662,0.98590882,4437.2,4437.1,0.02]
[1755281123878,0.1128,4437.2,4437.1,0.02]
[1755281124089,3.617,4438.2,4437.1,0.9383]
[1755281124293,5.25325603,4438.1,4437.1,0.02]
[1755281124489,2.25341295,4437.8,4437.1,0.02]
[1755281124689,3.0,4438.1,4437.1,0.02]
[1755281124998,2.93217616,4438.0,4437.1,0.02]
[1755281125157,0.67890594,4438.0,4437.1,0.02]
[1755281125696,0.67890594,4438.0,4437.1,2.27372264]
[1755281125994,0.67890594,4438.0,4437.1,0.02]
[1755281126196,1.10990594,4438.0,4437.1,0.02]
[1755281126486,0.82237059,4437.9,4437.1,0.02]
[1755281126688,3.07573357,4437.9,4437.1,0.02]
[1755281127100,3.0,4437.8,4437.1,0.02]
[1755281127395,0.55,4437.4,4437.1,0.02]
[1755281127566,3.55,4437.2,4437.1,0.02]
[1755281127895,10.35503575,4437.2,4437.1,0.02]
[1755281128103,10.78603575,4437.2,4437.1,0.02]
[1755281129562,11.28283575,4437.2,4437.1,0.02]
[1755281130192,11.28283575,4437.2,4436.1,0.02]
[1755281130193,2.8041815,4436.2,4436.1,0.02]
[1755281130398,4.166,4436.2,4436.1,0.02]
[1755281130603,6.2867815,4436.2,4436.1,0.02]
[1755281130777,6.7177815,4436.2,4436.1,0.02]
[1755281131440,7.2145815,4436.2,4436.1,0.02]
[1755281132408,10.7645815,4436.2,4436.1,0.02]
[1755281132713,10.7625815,4436.2,4436.1,0.02]
[1755281132912,3.4166,4436.2,4436.1,0.02]
[1755281133119,9.2847815,4436.2,4436.1,0.02]
[1755281133470,3.4166,4436.2,4436.1,0.02]
[1755281133675,3.0,4436.4,4436.1,0.02]
[1755281134630,0.1128,4436.2,4436.1,0.02]
[1755281134927,0.1128,4436.2,4436.1,0.9383]
[1755281135085,0.1128,4436.2,4436.1,0.9393]
[1755281136023,3.612,4436.6,4436.1,0.021]
[1755281136206,2.3669815,4436.2,4436.1,0.021]
[1755281136378,0.3612,4436.5,4436.2,0.4315]
[1755281136603,0.1128,4436.7,4436.4,2.25407988]
[1755281136801,0.4633,4438.2,4436.5,0.8969]
[1755281136802,2.25339028,4437.8,4436.5,0.8969]
[1755281137003,0.1128,4437.3,4436.6,1.0097]
[1755281137336,5.87243558,4437.7,4436.1,2.2752175]
[1755281137337,2.25347034,4437.6,4436.1,2.2752175]
[1755281137653,2.25387666,4436.8,4436.1,0.021]
[1755281137941,0.1128,4436.5,4436.1,0.021]
[1755281138433,2.74001389,4436.5,4436.1,0.021]
[1755281138645,2.25409107,4436.4,4436.1,0.021]
[1755281138803,0.48598,4436.5,4436.1,0.021]
[1755281139200,2.74001385,4436.5,4436.1,0.021]
[1755281139401,0.48598,4436.5,4436.1,0.021]
[1755281140136,0.1128,4436.5,4436.1,0.4525]
[1755281141541,0.1128,4436.5,4436.2,0.4315]
[1755281141745,0.1128,4436.5,4436.2,0.8969]
[1755281141913,3.07569595,4437.9,4437.2,2.25365793]
[1755281142109,0.1128,4437.4,4437.3,2.25362269]
[1755281142311,3.614,4438.3,4437.3,0.8969]
[1755281142629,0.4742,4438.2,4437.6,0.1128]
[1755281142830,0.02,4439.4,4437.7,3.15031883]
[1755281143029,0.1128,4438.9,4438.1,0.1128]
[1755281143209,0.1128,4438.9,4438.4,2.25304347]
[1755281143703,0.1128,4438.9,4438.4,2.68454347]
[1755281143906,0.1128,4438.9,4438.4,2.6845596]
[1755281144404,0.1128,4438.9,4438.4,0.4315]
[1755281144738,0.02,4439.4,4437.7,0.1128]
[1755281144739,0.1128,4438.5,4437.7,0.1128]
[1755281145106,0.9544,4438.8,4437.5,0.1128]
[1755281145107,0.1128,4438.1,4437.5,0.1128]
[1755281145741,2.25331585,4438.0,4437.1,2.25371723]
[1755281146044,0.1128,4437.7,4437.1,2.36651723]
[1755281146233,0.1128,4437.7,4436.8,0.8969]
[1755281146421,2.25351359,4437.6,4436.8,1.0097]
[1755281146661,2.71548177,4437.6,4436.8,1.0097]
[1755281147164,0.46196818,4437.6,4436.8,1.0097]
[1755281147346,0.46196818,4437.6,4436.8,3.26356782]
[1755281147878,0.46196818,4437.6,4436.9,2.25382525]
[1755281148078,0.46196818,4437.6,4436.8,1.0097]
[1755281148283,0.41857682,4437.5,4436.8,1.0097]
[1755281148586,0.41857682,4437.5,4436.8,2.36664414]
[1755281148745,0.41857682,4437.5,4436.9,2.25382354]
[1755281149082,0.41857682,4437.5,4436.9,2.25382586]
[1755281149379,0.41857682,4437.5,4437.0,2.25375977]
[1755281149544,0.41857682,4437.5,4437.1,0.4315]
[1755281149741,0.1128,4437.7,4437.1,0.8969]
[1755281149988,0.1128,4437.7,4437.6,2.25347034]
[1755281150196,0.1128,4437.7,4437.6,0.4315]
[1755281150343,0.1128,4437.7,4437.6,0.8969]
[1755281150546,0.1128,4437.8,4437.6,0.8969]
[1755281150774,0.1128,4437.8,4437.2,0.1128]
[1755281150983,0.1128,4437.8,4437.3,2.25362269]
[1755281151184,0.1128,4437.8,4437.5,2.25349861]
[1755281151586,0.1128,4437.8,4437.6,2.25346106]
[1755281151886,0.1128,4437.8,4437.2,0.1128]
[1755281152190,0.002,4437.7,4437.3,2.25362269]
[1755281152362,0.002,4437.7,4437.2,0.1128]
[1755281152858,2.25542223,4437.7,4437.0,0.1128]
[1755281153041,0.23682222,4437.6,4437.0,0.1128]
[1755281153442,2.49030066,4437.6,4437.0,0.1128]
[1755281153945,0.23682222,4437.6,4436.8,0.8979]
[1755281154147,0.1128,4437.5,4436.8,0.1138]
[1755281154347,2.25363094,4437.3,4436.8,0.1138]
[1755281154567,0.1128,4437.5,4436.8,0.1138]
[1755281154568,2.36635322,4437.5,4436.8,0.1138]
[1755281154773,2.2536387,4437.3,4436.8,0.1138]
[1755281154969,2.36632195,4437.5,4436.8,0.1138]
[1755281155170,2.25367654,4437.2,4436.8,0.1138]
[1755281155680,2.25362269,4437.3,4436.8,0.1138]
[1755281155898,0.2368322,4437.4,4436.8,0.1138]
[1755281156183,0.9544,4437.2,4436.8,0.1138]
[1755281156350,2.25377507,4437.0,4436.8,0.1138]
[1755281156691,10.23884337,4436.9,4436.8,0.001]
[1755281158361,10.78884337,4436.9,4436.8,1e-08]
[1755281160677,10.67304337,4436.9,4436.8,1e-08]
[1755281160876,10.78584337,4436.9,4436.8,1e-08]
[1755281162490,9.27844337,4436.9,4436.8,1e-08]
[1755281162787,10.23284337,4436.9,4436.8,1e-08]
[1755281162989,2.68744337,4436.9,4436.8,1e-08]
[1755281163163,6.27944337,4436.9,4436.8,1e-08]
[1755281163493,5.95862586,4436.9,4436.8,1e-08]
[1755281163793,2.25316644,4438.2,4436.9,2.25382586]
[1755281163966,0.1128,4437.8,4437.0,0.8969]
[1755281164150,3.593,4438.0,4437.0,0.8969]
[1755281164352,0.1128,4437.4,4437.0,3.15062833]
[1755281164591,0.1128,4437.4,4437.1,3.15057776]
[1755281164800,3.593,4437.9,4437.1,0.8969]
[1755281164960,0.1128,4437.8,4437.2,0.1128]
[1755281165159,3.593,4437.9,4437.1,0.8969]
[1755281165353,0.1128,4437.5,4437.1,0.8969]
[1755281165580,0.1128,4437.5,4437.2,3.15057128]
[1755281165766,3.594,4437.9,4437.3,0.8969]
[1755281165970,0.1148,4437.7,4437.3,0.8969]
[1755281166184,0.1148,4437.7,4437.4,0.8969]
[1755281166394,0.1148,4437.7,4437.4,3.15042889]
[1755281166601,0.002,4437.7,4437.3,2.25362178]
[1755281166802,0.002,4437.7,4437.4,0.9269]
[1755281167307,0.002,4437.7,4437.5,0.9269]
[1755281168369,0.002,4437.7,4437.2,2.36646862]
[1755281168370,0.002,4437.7,4437.6,0.9269]
[1755281168570,0.002,4437.7,4437.3,0.9269]
[1755281168966,0.002,4437.7,4437.4,0.9269]
[1755281169575,0.002,4437.7,4437.5,0.4662]
[1755281169998,0.002,4437.5,4437.2,0.1128]
[1755281170303,0.002,4437.5,4437.3,0.4662]
[1755281170505,0.002,4437.5,4437.3,0.9269]
[1755281171203,0.002,4437.5,4437.2,0.1128]
[1755281171384,2.71547191,4437.4,4436.8,1e-08]
[1755281171589,0.27174719,4437.3,4436.8,1e-08]
[1755281171795,0.4619,4437.4,4436.8,1e-08]
[1755281172006,2.25379549,4437.0,4436.8,1e-08]
[1755281172203,0.4619,4437.3,4436.8,1e-08]
[1755281172382,2.25382586,4436.9,4436.8,1e-08]
[1755281173016,2.71572586,4436.9,4436.8,1e-08]
[1755281173215,4.06507367,4436.9,4436.8,1e-08]
[1755281174988,7.06507367,4436.9,4436.8,1e-08]
[1755281176487,7.61507367,4436.9,4436.8,1e-08]
[1755281177326,3.0,4436.8,4436.1,0.021]
[1755281177525,0.55,4436.4,4436.1,1e-08]
[1755281177691,5.8041815,4436.2,4436.1,1e-08]
[1755281178130,6.7600815,4436.2,4436.1,1e-08]
[1755281178499,10.3510815,4436.2,4436.1,1e-08]
[1755281179833,5.80428313,4436.0,4435.9,1e-08]
[1755281180307,6.76018313,4436.0,4435.9,1e-08]
[1755281180711,5.80438477,4435.8,4435.7,1e-08]
[1755281181033,9.39138477,4435.8,4435.7,1e-08]
[1755281181235,2.80468975,4435.2,4435.1,1e-08]
[1755281181400,7.01142061,4435.2,4435.1,1e-08]
[1755281181620,7.96732061,4435.2,4435.1,1e-08]
[1755281181819,8.04226517,4435.2,4435.1,1e-08]
[1755281182128,10.96732061,4435.2,4435.1,1e-08]
[1755281183140,11.04474236,4435.2,4435.1,1e-08]
[1755281184643,41.04474236,4435.2,4435.1,1e-08]
[1755281184844,37.45674236,4435.2,4435.1,1e-08]
[1755281185058,41.04274236,4435.2,4435.1,1e-08]
[1755281185682,41.04274236,4435.2,4434.1,0.02]
[1755281185889,2.80519823,4434.2,4434.1,1e-08]
[1755281186181,9.38919823,4434.2,4434.1,1e-08]
[1755281186341,40.34509823,4434.2,4434.1,1e-08]
[1755281186544,40.45789823,4434.2,4434.1,1e-08]
[1755281186787,36.87389823,4434.2,4434.1,1e-08]
[1755281186950,41.4694056,4434.2,4434.1,1e-08]
[1755281187353,41.4684056,4434.2,4434.1,1e-08]
[1755281187565,11.4704056,4434.2,4434.1,1e-08]
[1755281187776,7.8804056,4434.2,4434.1,1e-08]
[1755281187979,11.4704056,4434.2,4434.1,1e-08]
[1755281188183,11.4704056,4434.2,4432.1,0.02]
[1755281188184,2.25524909,4434.1,4432.1,0.02]
[1755281188343,37.88252122,4434.0,4432.1,0.02]
[1755281188544,0.55,4433.7,4432.1,0.02]
[1755281188788,5.80621587,4432.2,4432.1,0.02]
[1755281188969,5.25621587,4432.2,4432.1,0.02]
[1755281189173,8.87921587,4432.2,4432.1,0.4862]
[1755281189376,6.31214673,4432.2,4432.1,1e-08]
[1755281189551,9.93514673,4432.2,4432.1,1e-08]
[1755281190281,0.55,4432.0,4431.1,1e-08]
[1755281190500,5.80672504,4431.2,4431.1,1e-08]
[1755281191057,9.43172504,4431.2,4431.1,1e-08]
[1755281191297,6.93397837,4431.2,4431.1,1e-08]
[1755281191448,2.97807837,4431.2,4431.1,1e-08]
[1755281191649,2.2559653,4432.7,4431.1,3.18367503]
[1755281191987,3.625,4432.1,4431.2,0.9269]
[1755281192291,3.55,4432.0,4431.1,1e-08]
[1755281192472,2.25672504,4431.2,4431.1,1e-08]
[1755281192655,5.89972504,4431.2,4431.1,1e-08]
[1755281192852,2.25672504,4431.2,4431.1,0.92690001]
[1755281193053,2.25672504,4431.2,4431.1,1e-08]
[1755281193054,9.67539754,4431.2,4431.1,1e-08]
[1755281193252,9.84086023,4431.2,4431.1,1e-08]
[1755281193575,9.30286023,4431.2,4431.1,1e-08]
[1755281193883,8.91072504,4431.2,4431.1,0.92690001]
[1755281194380,5.25672504,4431.2,4431.1,0.92690001]
[1755281194583,0.4619,4432.3,4431.1,0.92690001]
[1755281194788,5.418,4432.8,4431.1,0.46070001]
[1755281194789,0.1694553,4431.7,4431.1,0.46070001]
[1755281194951,2.25644072,4431.8,4431.2,0.4662]
[1755281195150,3.654,4431.7,4431.2,0.4662]
[1755281195402,5.418,4432.8,4431.3,0.4662]
[1755281195604,0.5418,4432.7,4431.3,0.4662]
[1755281195759,2.25647298,4431.7,4431.3,0.4662]
[1755281195961,3.655,4431.6,4431.4,0.4662]
[1755281196279,3.657,4431.5,4431.1,0.4662]
[1755281196474,2.25667569,4431.3,4430.5,2.25703821]
[1755281196695,2.25667569,4431.3,4430.2,2.25722619]